fUST/lending_fUST_20240922
["ID","MTS","AMOUNT","RATE_DAILY","PERIOD"]
[338864223,1726953040790,-483.05090178,0.00015105,2]
[338864224,1726953040799,-500.0,0.00015105,2]
[338864225,1726953040808,-500.0,0.00015105,2]
[338864226,1726953040817,-500.0,0.00015105,2]
[338864227,1726953040827,-500.0,0.00015105,2]
[338864228,1726953040836,-500.0,0.00015105,2]
[338864229,1726953040845,-500.0,0.00015105,2]
[338864230,1726953040854,-500.0,0.00015105,2]
[338864231,1726953040864,-500.0,0.00015105,2]
[338864232,1726953040873,-500.0,0.00015105,2]
[338864233,1726953040883,-500.0,0.00015375,2]
[338864234,1726953040892,-500.0,0.00015375,2]
[338864235,1726953040901,-500.0,0.00015375,2]
[338864236,1726953040911,-500.0,0.00015375,2]
[338864237,1726953040922,-500.0,0.00015375,2]
[338864238,1726953040931,-500.0,0.00015375,2]
[338864239,1726953040940,-500.0,0.00015375,2]
[338864240,1726953040950,-500.0,0.00015375,2]
[338864241,1726953040961,-517.1,0.00015375,2]
[338864242,1726953040971,-500.0,0.00015375,2]
[338864243,1726953040980,-500.0,0.00015375,2]
[338864244,1726953040990,-500.0,0.00015375,2]
[338864245,1726953041000,-500.0,0.00015375,2]
[338864246,1726953041010,-500.0,0.00015375,2]
[338864247,1726953041019,-500.0,0.00015375,2]
[338864248,1726953041029,-500.0,0.00015375,2]
[338864249,1726953041038,-500.0,0.00015377,2]
[338864250,1726953041047,-500.0,0.00015377,2]
[338864251,1726953041057,-500.0,0.00015377,2]
[338864252,1726953041066,-500.0,0.00015377,2]
[338864253,1726953041076,-500.0,0.00015377,2]
[338864254,1726953041085,-511.65,0.00015377,2]
[338864255,1726953041095,-500.0,0.00015377,2]
[338864256,1726953041104,-500.0,0.00015377,2]
[338864257,1726953041114,-9222.15,0.00015377,2]
[338864258,1726953041123,-3279.21,0.00015377,2]
[338864259,1726953041133,-832.66,0.00015377,2]
[338864260,1726953041142,-500.0,0.00015378,2]
[338864261,1726953041152,-500.0,0.00015378,2]
[338864262,1726953041164,-500.0,0.00015378,2]
[338864263,1726953041175,-500.0,0.00015378,2]
[338864264,1726953041185,-532.4,0.00015378,2]
[338864265,1726953041359,-389.35667443,0.00015378,2]
[338864266,1726953041414,-159.79670019,0.00015378,2]
[338864267,1726953041424,-500.0,0.00015378,2]
[338864268,1726953041434,-500.0,0.00015378,2]
[338864269,1726953041443,-454.51217959,0.00015378,2]
[338864270,1726953041453,-402.1663439,0.00015378,2]
[338864271,1726953041462,-500.0,0.00015379,2]
[338864272,1726953041471,-500.0,0.00015379,2]
[338864273,1726953041480,-500.0,0.00015379,2]
[338864274,1726953041489,-500.0,0.00015379,2]
[338864275,1726953041499,-500.0,0.00015379,2]
[338864276,1726953041508,-500.0,0.00015379,2]
[338864277,1726953041518,-500.0,0.00015379,2]
[338864278,1726953041531,-500.0,0.00015379,2]
[338864279,1726953041541,-500.0,0.00015379,2]
[338864280,1726953041550,-500.0,0.00015379,2]
[338864281,1726953041559,-315.61596561,0.00015649,2]
[338864282,1726953041568,-500.0,0.00015649,2]
[338864283,1726953041578,-529.28359655,0.00015649,2]
[338864284,1726953041587,-500.0,0.00015649,2]
[338864285,1726953041597,-500.0,0.00015649,2]
[338864286,1726953041607,-500.0,0.00015649,2]
[338864287,1726953041616,-500.0,0.00015649,2]
[338864288,1726953041626,-517.1,0.00015649,2]
[338864289,1726953041635,-500.0,0.00015649,2]
[338864290,1726953041644,-500.0,0.00015649,2]
[338864291,1726953041653,-500.0,0.00015649,2]
[338864292,1726953041663,-500.0,0.00015649,2]
[338864293,1726953041673,-500.0,0.00015649,2]
[338864294,1726953041682,-500.0,0.00015649,2]
[338864295,1726953041692,-500.0,0.00015649,2]
[338864296,1726953041701,-500.0,0.00015651,2]
[338864297,1726953041711,-500.0,0.00015651,2]
[338864298,1726953041720,-500.0,0.00015651,2]
[338864299,1726953041730,-500.0,0.00015651,2]
[338864300,1726953041739,-511.65,0.00015651,2]
[338864301,1726953041748,-500.0,0.00015651,2]
[338864302,1726953041758,-500.0,0.00015651,2]
[338864303,1726953041767,-9222.15,0.00015651,2]
[338864304,1726953041777,-3279.21,0.00015651,2]
[338864305,1726953041786,-832.66,0.00015651,2]
[338864306,1726953041795,-500.0,0.00015652,2]
[338864307,1726953041804,-500.0,0.00015652,2]
[338864308,1726953041814,-500.0,0.00015652,2]
[338864309,1726953041824,-500.0,0.00015652,2]
[338864310,1726953041834,-532.4,0.00015652,2]
[338864311,1726953041843,-500.0,0.00015652,2]
[338864312,1726953041852,-500.0,0.00015652,2]
[338864313,1726953041861,-500.0,0.00015653,2]
[338864314,1726953041871,-567.28729809,0.00015653,2]
[338864315,1726953041880,-500.0,0.00015653,2]
[338864316,1726953041889,-500.0,0.00015653,2]
[338864317,1726953041898,-500.0,0.00015653,2]
[338864318,1726953041907,-500.0,0.00015653,2]
[338864319,1726953041916,-500.0,0.00015653,2]
[338864320,1726953041926,-500.0,0.00015653,2]
[338864321,1726953041936,-500.0,0.00015653,2]
[338864322,1726953041945,-29827.8570128,0.00015865,2]
[338864323,1726953041955,-34186.529782,0.00015865,2]
[338864324,1726953041965,-998.90120867,0.00015875,2]
[338864325,1726953041974,-309.47766963,0.00015922,2]
[338864326,1726953041983,-602.48346368,0.00015923,2]
[338864327,1726953041992,-500.0,0.00015923,2]
[338864328,1726953042002,-517.1,0.00015923,2]
[338864329,1726953042011,-500.0,0.00015923,2]
[338864330,1726953042019,-500.0,0.00015923,2]
[338864331,1726953042029,-500.0,0.00015923,2]
[338864332,1726953042038,-500.0,0.00015923,2]
[338864333,1726953042047,-500.0,0.00015923,2]
[338864334,1726953042057,-500.0,0.00015923,2]
[338864335,1726953042066,-500.0,0.00015925,2]
[338864336,1726953042075,-500.0,0.00015925,2]
[338864337,1726953042085,-171.12430296,0.00015925,2]
[338864338,1726953042095,-500.0,0.00015925,2]
[338864339,1726953042104,-511.65,0.00015925,2]
[338864340,1726953042113,-500.0,0.00015925,2]
[338864341,1726953042123,-9222.15,0.00015925,2]
[338864342,1726953042132,-3279.21,0.00015925,2]
[338864343,1726953042141,-832.66,0.00015925,2]
[338864344,1726953042151,-500.0,0.00015926,2]
[338864345,1726953042159,-500.0,0.00015926,2]
[338864346,1726953042169,-500.0,0.00015926,2]
[338864347,1726953042179,-532.4,0.00015926,2]
[338864348,1726953042188,-500.0,0.00015926,2]
[338864349,1726953042198,-615.11566025,0.00015926,2]
[338864350,1726953042208,-500.0,0.00015927,2]
[338864351,1726953042217,-500.0,0.00015927,2]
[338864352,1726953042226,-500.0,0.00015927,2]
[338864353,1726953042235,-500.0,0.00015927,2]
[338864354,1726953042245,-500.0,0.00015927,2]
[338864355,1726953042255,-355.07105318,0.00015927,2]
[338864356,1726953042264,-500.0,0.00015927,2]
[338864357,1726953042274,-500.0,0.00015927,2]
[338864358,1726953042283,-300.0,0.000161,6]
[338864359,1726953042292,-29827.8570128,0.00016191,2]
[338864360,1726953042301,-34186.529782,0.00016191,2]
[338864361,1726953042311,-500.0,0.00016197,2]
[338864362,1726953042320,-517.1,0.00016197,2]
[338864363,1726953042329,-500.0,0.00016197,2]
[338864364,1726953042338,-500.0,0.00016197,2]
[338864365,1726953042347,-500.0,0.00016197,2]
[338864366,1726953042357,-500.0,0.00016197,2]
[338864367,1726953042366,-426.46244305,0.00016197,2]
[338864368,1726953042375,-500.0,0.00016197,2]
[338864369,1726953042385,-7140.47594759,0.00016198,2]
[338864370,1726953042394,-500.0,0.00016199,2]
[338864371,1726953042403,-360.61,0.00016199,2]
[338864372,1726953042412,-500.0,0.00016199,2]
[338864373,1726953042421,-511.65,0.00016199,2]
[338864374,1726953042430,-547.01474531,0.00016199,2]
[338864375,1726953042439,-9222.15,0.00016199,2]
[338864376,1726953042448,-3279.21,0.00016199,2]
[338864377,1726953042457,-832.66,0.00016199,2]
[338864378,1726953042466,-500.0,0.000162,2]
[338864379,1726953042475,-500.0,0.000162,2]
[338864380,1726953042484,-500.0,0.000162,2]
[338864381,1726953042493,-532.4,0.000162,2]
[338864382,1726953042502,-500.0,0.000162,2]
[338864383,1726953042511,-500.0,0.00016201,2]
[338864384,1726953042520,-500.0,0.00016201,2]
[338864385,1726953042534,-500.0,0.00016201,2]
[338864386,1726953042543,-500.0,0.00016201,2]
[338864387,1726953042552,-500.0,0.00016201,2]
[338864388,1726953042561,-500.0,0.00016201,2]
[338864389,1726953042570,-339.55691879,0.00016201,2]
[338864390,1726953042579,-150.0,0.00016214,2]
[338864391,1726953042588,-998.90120867,0.00016248,2]
[338864392,1726953042598,-1483.65753051,0.000163,2]
[338864393,1726953042609,-200.0,0.00016438,2]
[338864394,1726953042619,-200.0,0.00016438,2]
[338864395,1726953042628,-200.0,0.00016438,2]
[338864396,1726953042638,-200.0,0.00016438,2]
[338864397,1726953042647,-200.0,0.00016438,2]
[338864398,1726953042656,-681.6,0.00016438,2]
[338864399,1726953042665,-150.0,0.00016463,2]
[338864400,1726953042674,-150.0,0.00016463,2]
[338864401,1726953042684,-150.0,0.00016463,2]
[338864402,1726953042696,-524.0,0.00016463,2]
[338864403,1726953042706,-1216.0,0.00016463,2]
[338864404,1726953042716,-46491.425,0.00016463,2]
[338864405,1726953042727,-500.0,0.00016471,2]
[338864406,1726953042737,-517.1,0.00016471,2]
[338864407,1726953042748,-500.0,0.00016471,2]
[338864408,1726953042758,-500.0,0.00016471,2]
[338864409,1726953042767,-500.0,0.00016471,2]
[338864410,1726953042776,-500.0,0.00016471,2]
[338864411,1726953042786,-500.0,0.00016473,2]
[338864412,1726953042795,-500.0,0.00016473,2]
[338864413,1726953042804,-511.65,0.00016473,2]
[338864414,1726953042813,-9222.15,0.00016473,2]
[338864415,1726953042823,-3279.21,0.00016473,2]
[338864416,1726953042832,-832.66,0.00016473,2]
[338864417,1726953042842,-500.0,0.00016474,2]
[338864418,1726953042851,-500.0,0.00016474,2]
[338864419,1726953042860,-200.0,0.00016474,2]
[338864420,1726953042870,-500.0,0.00016474,2]
[338864421,1726953042879,-532.4,0.00016474,2]
[338864422,1726953042889,-500.0,0.00016474,2]
[338864423,1726953042898,-500.0,0.00016475,2]
[338864424,1726953042907,-500.0,0.00016475,2]
[338864425,1726953042917,-500.0,0.00016475,2]
[338864426,1726953042926,-500.0,0.00016475,2]
[338864427,1726953042936,-517.05312357,0.00016475,2]
[338864428,1726953042946,-500.0,0.00016475,2]
[338864429,1726953042956,-420.0,0.00016527,2]
[338864430,1726953042966,-151.0,0.00016707,2]
[338864431,1726953042975,-500.0,0.00016736,2]
[338864433,1726953042984,-215.09444474,0.00016736,2]
[338864434,1726953042994,-500.0,0.00016736,2]
[338864435,1726953043003,-29827.8570128,0.00016737,2]
[338864436,1726953043012,-34186.529782,0.00016737,2]
[338864437,1726953043021,-500.0,0.00016745,2]
[338864438,1726953043030,-517.1,0.00016745,2]
[338864439,1726953043039,-500.0,0.00016745,2]
[338864440,1726953043048,-500.0,0.00016745,2]
[338864441,1726953043058,-500.0,0.00016745,2]
[338864442,1726953043067,-500.0,0.00016747,2]
[338864443,1726953043078,-500.0,0.00016747,2]
[338864444,1726953043089,-511.65,0.00016747,2]
[338864445,1726953043100,-9222.15,0.00016747,2]
[338864447,1726953043110,-3279.21,0.00016747,2]
[338864448,1726953043121,-832.66,0.00016747,2]
[338864449,1726953043131,-500.0,0.00016748,2]
[338864450,1726953043141,-500.0,0.00016748,2]
[338864451,1726953043150,-200.0,0.00016748,2]
[338864452,1726953043160,-500.0,0.00016748,2]
[338864453,1726953043169,-532.4,0.00016748,2]
[338864454,1726953043184,-500.0,0.00016748,2]
[338864456,1726953043194,-500.0,0.00016749,2]
[338864457,1726953043203,-500.0,0.00016749,2]
[338864458,1726953043214,-500.0,0.00016749,2]
[338864460,1726953043223,-500.0,0.00016749,2]
[338864462,1726953043233,-500.0,0.00016749,2]
[338864464,1726953043243,-681.6,0.00016762,2]
[338864466,1726953043254,-2317.7779218,0.00016877,2]
[338864467,1726953043263,-433.80217179,0.00016954,2]
[338864468,1726953043272,-1000.0,0.00017,2]
[338864470,1726953043282,-7734.26253958,0.00017,2]
[338864471,1726953043291,-45084.93020546,0.00017011,3]
[338864569,1726954237860,-907.14,0.000151,2]
[338864570,1726954237872,-300.0,0.000151,2]
[338864571,1726954237882,-500.0,0.00015101,2]
[338864572,1726954237894,-500.0,0.00015101,2]
[338864573,1726954237907,-500.0,0.00015101,2]
[338864574,1726954237916,-449.51,0.00015101,2]
[338864576,1726954238124,-50.49,0.00015101,2]
[338864577,1726954238135,-500.0,0.00015101,2]
[338864578,1726954238146,-1068.69324728,0.00015101,2]
[338864579,1726954238158,-8751.18675272,0.00015101,2]
[338864580,1726954238167,-952.63,0.00015101,2]
[338864581,1726954238176,-500.0,0.00015102,2]
[338864582,1726954238185,-500.0,0.00015102,2]
[338864583,1726954238194,-500.0,0.00015102,2]
[338864584,1726954238204,-500.0,0.00015102,2]
[338864585,1726954238214,-576.89,0.00015102,2]
[338864586,1726954238223,-500.0,0.00015102,2]
[338864587,1726954238233,-209.69262105,0.00015102,2]
[338864588,1726954238243,-577.71,0.00015102,2]
[338864589,1726954238253,-336.61644193,0.00015102,2]
[338864590,1726954238262,-500.0,0.00015102,2]
[338864591,1726954238272,-500.0,0.00015102,2]
[338864592,1726954238282,-500.0,0.00015102,2]
[338864593,1726954238292,-500.0,0.00015102,2]
[338864594,1726954238301,-500.0,0.00015102,2]
[338864595,1726954238310,-500.0,0.00015102,2]
[338864596,1726954238319,-553.03,0.00015102,2]
[338864597,1726954238328,-288.46,0.00015102,2]
[338864598,1726954238338,-500.0,0.00015102,2]
[338864599,1726954238347,-500.0,0.00015102,2]
[338864600,1726954238357,-500.0,0.00015102,2]
[338864601,1726954238366,-500.0,0.00015102,2]
[338864602,1726954238376,-500.0,0.00015102,2]
[338864603,1726954238387,-3494.48,0.00015102,2]
[338864604,1726954238399,-500.0,0.00015102,2]
[338864605,1726954238410,-500.0,0.00015103,2]
[338864606,1726954238421,-500.0,0.00015103,2]
[338864607,1726954238431,-500.0,0.00015103,2]
[338864608,1726954238441,-500.0,0.00015103,2]
[338864609,1726954238451,-500.0,0.00015103,2]
[338864610,1726954238461,-500.0,0.00015103,2]
[338864611,1726954238470,-500.0,0.00015103,2]
[338864612,1726954238480,-500.0,0.00015103,2]
[338864613,1726954238489,-500.0,0.00015103,2]
[338864614,1726954238498,-500.0,0.00015103,2]
[338864615,1726954238508,-500.0,0.00015103,2]
[338864616,1726954238517,-500.0,0.00015103,2]
[338864617,1726954238527,-500.0,0.00015103,2]
[338864618,1726954238537,-217.3981368,0.00015103,2]
[338864619,1726954238546,-500.0,0.00015103,2]
[338864620,1726954238556,-500.0,0.00015103,2]
[338864621,1726954238566,-500.0,0.00015103,2]
[338864622,1726954238576,-500.0,0.00015103,2]
[338864623,1726954238587,-548.13,0.00015103,2]
[338864624,1726954238596,-500.0,0.00015103,2]
[338864625,1726954238606,-500.0,0.00015103,2]
[338864626,1726954238615,-500.0,0.00015103,2]
[338864627,1726954238625,-500.0,0.00015103,2]
[338864628,1726954238635,-500.0,0.00015103,2]
[338864629,1726954238645,-500.0,0.00015103,2]
[338864630,1726954238654,-500.0,0.00015103,2]
[338864631,1726954238664,-500.0,0.00015103,2]
[338864632,1726954238673,-485.67941946,0.00015103,2]
[338864633,1726954238683,-500.0,0.00015375,2]
[338864634,1726954238692,-500.0,0.00015375,2]
[338864635,1726954238702,-500.0,0.00015375,2]
[338864636,1726954238711,-500.0,0.00015375,2]
[338864637,1726954238721,-500.0,0.00015375,2]
[338864638,1726954238732,-9819.88,0.00015375,2]
[338864639,1726954238743,-952.63,0.00015375,2]
[338864640,1726954238753,-500.0,0.00015376,2]
[338864641,1726954238762,-500.0,0.00015376,2]
[338864642,1726954238771,-576.89,0.00015376,2]
[338864643,1726954238781,-500.0,0.00015376,2]
[338864644,1726954238791,-577.71,0.00015376,2]
[338864645,1726954238800,-500.0,0.00015376,2]
[338864646,1726954238810,-575.07,0.00015376,2]
[338864647,1726954238819,-500.0,0.00015376,2]
[338864648,1726954238829,-500.0,0.00015376,2]
[338864649,1726954238838,-500.0,0.00015376,2]
[338864650,1726954238847,-500.0,0.00015376,2]
[338864651,1726954238856,-553.03,0.00015376,2]
[338864652,1726954238870,-500.0,0.00015376,2]
[338864653,1726954238880,-500.0,0.00015376,2]
[338864654,1726954238890,-500.0,0.00015376,2]
[338864655,1726954238899,-500.0,0.00015376,2]
[338864656,1726954238910,-500.0,0.00015376,2]
[338864657,1726954238920,-3494.48,0.00015376,2]
[338864658,1726954238930,-500.0,0.00015377,2]
[338864659,1726954238940,-500.0,0.00015377,2]
[338864660,1726954238950,-500.0,0.00015377,2]
[338864661,1726954238960,-500.0,0.00015377,2]
[338864662,1726954238970,-500.0,0.00015377,2]
[338864663,1726954238980,-500.0,0.00015377,2]
[338864664,1726954238992,-500.0,0.00015377,2]
[338864665,1726954239003,-500.0,0.00015377,2]
[338864666,1726954239014,-548.13,0.00015377,2]
[338864667,1726954239023,-500.0,0.00015377,2]
[338864668,1726954239035,-500.0,0.00015377,2]
[338864669,1726954239046,-500.0,0.00015377,2]
[338864670,1726954239056,-500.0,0.00015377,2]
[338864671,1726954239067,-500.0,0.00015377,2]
[338864672,1726954239076,-500.0,0.00015377,2]
[338864673,1726954239086,-500.0,0.00015377,2]
[338864674,1726954239096,-500.0,0.00015377,2]
[338864675,1726954239107,-998.90120867,0.00015565,2]
[338864676,1726954239118,-30754.0513322,0.00015641,2]
[338864692,1726954241630,-5538.531763,0.00015641,2]
[338864693,1726954241640,-39764.2694453,0.00015641,2]
[338864694,1726954241651,-500.0,0.00015649,2]
[338864695,1726954241661,-500.0,0.00015649,2]
[338864696,1726954241670,-500.0,0.00015649,2]
[338864697,1726954241681,-500.0,0.00015649,2]
[338864698,1726954241692,-9819.88,0.00015649,2]
[338864699,1726954241703,-952.63,0.00015649,2]
[338864700,1726954241713,-500.0,0.0001565,2]
[338864701,1726954241724,-500.0,0.0001565,2]
[338864702,1726954241735,-576.89,0.0001565,2]
[338864703,1726954241745,-577.71,0.0001565,2]
[338864704,1726954241757,-500.0,0.0001565,2]
[338864705,1726954241766,-500.0,0.0001565,2]
[338864706,1726954241775,-500.0,0.0001565,2]
[338864707,1726954241785,-500.0,0.0001565,2]
[338864708,1726954241795,-500.0,0.0001565,2]
[338864709,1726954241804,-553.03,0.0001565,2]
[338864710,1726954241814,-500.0,0.0001565,2]
[338864711,1726954241826,-500.0,0.0001565,2]
[338864712,1726954241836,-500.0,0.0001565,2]
[338864713,1726954241846,-500.0,0.0001565,2]
[338864714,1726954241855,-3494.48,0.0001565,2]
[338864715,1726954241866,-500.0,0.00015651,2]
[338864716,1726954241877,-500.0,0.00015651,2]
[338864717,1726954241888,-500.0,0.00015651,2]
[338864718,1726954241896,-500.0,0.00015651,2]
[338864719,1726954241906,-500.0,0.00015651,2]
[338864720,1726954241915,-500.0,0.00015651,2]
[338864721,1726954241926,-548.13,0.00015651,2]
[338864722,1726954241936,-500.0,0.00015651,2]
[338864723,1726954241946,-500.0,0.00015651,2]
[338864724,1726954241956,-500.0,0.00015651,2]
[338864725,1726954241966,-500.0,0.00015651,2]
[338864726,1726954241975,-500.0,0.00015651,2]
[338864727,1726954241986,-500.0,0.00015651,2]
[338864728,1726954241996,-500.0,0.00015651,2]
[338864729,1726954242005,-153.0,0.000157,2]
[338864730,1726954242014,-153.0,0.000157,2]
[338864731,1726954242023,-153.0,0.000157,2]
[338864732,1726954242032,-153.0,0.000157,2]
[338864733,1726954242041,-998.90120867,0.00015876,2]
[338864734,1726954242051,-36292.5830952,0.00015914,2]
[338864735,1726954242060,-39764.2694453,0.00015914,2]
[338864736,1726954242069,-500.0,0.00015923,2]
[338864737,1726954242078,-500.0,0.00015923,2]
[338864738,1726954242087,-500.0,0.00015923,2]
[338864739,1726954242097,-9819.88,0.00015923,2]
[338864740,1726954242106,-952.63,0.00015923,2]
[338864741,1726954242115,-500.0,0.00015924,2]
[338864742,1726954242124,-500.0,0.00015924,2]
[338864743,1726954242133,-576.89,0.00015924,2]
[338864744,1726954242143,-577.71,0.00015924,2]
[338864745,1726954242152,-500.0,0.00015924,2]
[338864746,1726954242161,-500.0,0.00015924,2]
[338864747,1726954242170,-500.0,0.00015924,2]
[338864748,1726954242179,-500.0,0.00015924,2]
[338864749,1726954242189,-500.0,0.00015924,2]
[338864750,1726954242198,-553.03,0.00015924,2]
[338864751,1726954242207,-500.0,0.00015924,2]
[338864752,1726954242216,-615.11566025,0.00015924,2]
[338864753,1726954242226,-500.0,0.00015924,2]
[338864754,1726954242235,-500.0,0.00015924,2]
[338864755,1726954242244,-3494.48,0.00015924,2]
[338864756,1726954242254,-500.0,0.00015925,2]
[338864758,1726954242263,-500.0,0.00015925,2]
[338864759,1726954242272,-500.0,0.00015925,2]
[338864760,1726954242281,-500.0,0.00015925,2]
[338864761,1726954242290,-500.0,0.00015925,2]
[338864762,1726954242300,-500.0,0.00015925,2]
[338864763,1726954242308,-548.13,0.00015925,2]
[338864764,1726954242318,-500.0,0.00015925,2]
[338864765,1726954242327,-500.0,0.00015925,2]
[338864766,1726954242336,-556.82457343,0.00015925,2]
[338864767,1726954242346,-500.0,0.00015925,2]
[338864768,1726954242355,-500.0,0.00015925,2]
[338864770,1726954242364,-500.0,0.00015925,2]
[338864771,1726954242373,-306.0,0.000161,2]
[338864773,1726954242382,-300.0,0.000161,6]
[338864774,1726954242392,-151.0,0.00016168,2]
[338864775,1726954242401,-151.0,0.00016168,2]
[338864776,1726954242410,-151.0,0.00016168,2]
[338864777,1726954242420,-151.0,0.00016168,2]
[338864778,1726954242430,-151.0,0.00016168,2]
[338864780,1726954242439,-36292.5830952,0.00016168,2]
[338864781,1726954242449,-39764.2694453,0.00016168,2]
[338864782,1726954242458,-171.12430296,0.00016197,2]
[338864783,1726954242467,-500.0,0.00016197,2]
[338864784,1726954242476,-500.0,0.00016197,2]
[338864785,1726954242486,-9819.88,0.00016197,2]
[338864786,1726954242495,-952.63,0.00016197,2]
[338864787,1726954242505,-500.0,0.00016198,2]
[338864788,1726954242514,-500.0,0.00016198,2]
[338864789,1726954242523,-576.89,0.00016198,2]
[338864790,1726954242532,-577.71,0.00016198,2]
[338864791,1726954242541,-500.0,0.00016198,2]
[338864793,1726954242550,-500.0,0.00016198,2]
[338864794,1726954242559,-500.0,0.00016198,2]
[338864795,1726954242569,-500.0,0.00016198,2]
[338864796,1726954242579,-500.0,0.00016198,2]
[338864797,1726954242588,-553.03,0.00016198,2]
[338864798,1726954242597,-500.0,0.00016198,2]
[338864799,1726954242607,-426.46244305,0.00016198,2]
[338864801,1726954242616,-500.0,0.00016198,2]
[338864803,1726954242626,-3494.48,0.00016198,2]
[338864804,1726954242635,-500.0,0.00016199,2]
[338864805,1726954242645,-500.0,0.00016199,2]
[338864806,1726954242655,-500.0,0.00016199,2]
[338864807,1726954242664,-500.0,0.00016199,2]
[338864808,1726954242674,-500.0,0.00016199,2]
[338864809,1726954242684,-548.13,0.00016199,2]
[338864810,1726954242694,-500.0,0.00016199,2]
[338864811,1726954242703,-500.0,0.00016199,2]
[338864812,1726954242713,-500.0,0.00016199,2]
[338864813,1726954242723,-500.0,0.00016199,2]
[338864814,1726954242732,-500.0,0.00016199,2]
[338864815,1726954242742,-150.112239,0.000163,2]
[338864816,1726954242751,-1000.0,0.000164,2]
[338864817,1726954242761,-150.112233,0.000164,2]
[338864818,1726954242770,-715.74577479,0.00016415,2]
[338864819,1726954242779,-200.0,0.00016438,2]
[338864820,1726954242789,-200.0,0.00016438,2]
[338864821,1726954242798,-200.0,0.00016438,2]
[338864822,1726954242807,-200.0,0.00016438,2]
[338864823,1726954242816,-200.0,0.00016438,2]
[338864825,1726954242825,-681.6,0.00016438,2]
[338864826,1726954242835,-500.0,0.00016452,2]
[338864828,1726954242844,-500.0,0.00016452,2]
[338864830,1726954242853,-215.09444474,0.00016452,2]
[338864831,1726954242864,-36292.5830952,0.00016453,2]
[338864833,1726954242876,-39764.2694453,0.00016453,2]
[338864834,1726954242885,-151.0,0.00016453,2]
[338864835,1726954242896,-151.0,0.00016453,2]
[338864836,1726954242905,-151.0,0.00016453,2]
[338864837,1726954242915,-151.0,0.00016453,2]
[338864838,1726954242924,-151.0,0.00016453,2]
[338864839,1726954242933,-5000.0,0.00016453,2]
[338864840,1726954242944,-1674.517847,0.00016453,2]
[338864841,1726954242952,-46456.34456468,0.00016462,3]
[338864842,1726954242962,-102643.25571489,0.00016462,3]
[338864843,1726954242971,-151.0,0.00016462,2]
[338864844,1726954242980,-151.0,0.00016462,2]
[338864845,1726954242989,-151.0,0.00016462,2]
[338864846,1726954242998,-151.0,0.00016462,2]
[338864847,1726954243007,-151.0,0.00016462,2]
[338864848,1726954243016,-36292.5830952,0.00016462,2]
[338864849,1726954243025,-39764.2694453,0.00016462,2]
[338864850,1726954243035,-674.26425,0.00016463,2]
[338864851,1726954243044,-674.26425,0.00016463,2]
[338864852,1726954243053,-151.0,0.00016463,2]
[338864853,1726954243062,-151.0,0.00016463,2]
[338864854,1726954243072,-151.0,0.00016463,2]